fUST/lending_fUST_20240712
["ID","MTS","AMOUNT","RATE_DAILY","PERIOD"]
[331747131,1720747838417,-371.61,0.0002497,3]
[331747133,1720747838426,-743.21,0.0002499,3]
[331747135,1720747838435,-3317.9322397,0.00025,2]
[331747137,1720747838444,-260.49611941,0.00025,2]
[331747138,1720747838454,-229.23922118,0.00025,2]
[331747139,1720747838463,-4200.0,0.00025,2]
[331747140,1720747838472,-154.72224637,0.00025,2]
[331747141,1720747838482,-154.8609049,0.00025,2]
[331747142,1720747838491,-166.666666,0.00025014,2]
[331747143,1720747838500,-221.49021068,0.00025084,2]
[331747144,1720747838509,-221.49021064,0.00025111,2]
[331747145,1720747838519,-221.49021064,0.00025137,2]
[331747146,1720747838528,-302.51602579,0.00025149,2]
[331747147,1720747838538,-221.49021064,0.00025164,2]
[331747148,1720747838547,-106166.85819555,0.00025174,3]
[331747149,1720747838571,-11457.47140987,0.00025174,3]
[331747150,1720747838811,162.72,0.0002437,120]
[331747275,1720747843063,-589.80785287,0.0002,2]
[331747277,1720747843074,-4410.21511913,0.00025174,3]
[331747297,1720747843249,-17247.56953745,0.00025174,3]
[331747299,1720747843260,-221.49021064,0.0002519,2]
[331747301,1720747843270,-500.0,0.00025193,2]
[331747303,1720747843297,-408.44514271,0.00025193,2]
[331747305,1720747843306,-153.2559373,0.00025193,2]
[331747307,1720747843316,-500.0,0.00025193,2]
[331747310,1720747843326,-500.0,0.00025193,2]
[331747312,1720747843337,-640.04397986,0.00025193,2]
[331747314,1720747843346,-500.0,0.00025193,2]
[331747315,1720747843356,-500.0,0.00025193,2]
[331747317,1720747843365,-4172.36740757,0.00025194,5]
[331747319,1720747843375,-151.0,0.00025194,7]
[331747321,1720747843385,-151.0,0.00025194,7]
[331747323,1720747843395,-53042.28527927,0.00025194,3]
[331747328,1720747843430,-825.23341849,0.00025194,3]
[331747342,1720747843501,-2819.75735131,0.00025194,3]
[331747344,1720747843513,-5736.84039534,0.00025194,3]
[331747347,1720747843525,-9541.69395631,0.00025194,3]
[331747624,1720747846409,-4200.0,0.00025194,2]
[331747626,1720747846419,-7981.86,0.00025194,3]
[331747628,1720747846429,-1587.06829278,0.00025194,3]
[331747630,1720747846441,-719.79,0.00025194,3]
[331747644,1720747846573,-11354.0,0.00025194,3]
[331748005,1720747977363,5213.11762924,0.00016255,2]
[331748010,1720748193376,1433.50835407,0.00016255,2]
[331748038,1720748807064,150.0,0.000189,2]
[331748046,1720748934891,9301.87278425,0.00018899,2]
[331748047,1720748969601,-197.97933766,0.00019039,2]
[331748048,1720748969632,-84.63173989,0.0002,2]
[331748078,1720749032425,-136.17163261,0.0002,2]
[331748079,1720749032435,-435.0,0.0002,2]
[331748080,1720749032444,-151.21399475,0.0002,2]
[331748081,1720749032453,-176.11053175,0.0002,2]
[331748082,1720749032462,-188.00384089,0.00021096,2]
[331748139,1720749038553,-464.60299411,0.00021096,2]
[331748142,1720749038564,-166.666666,0.00022001,2]
[331748144,1720749038574,-4378.74515389,0.00022318,2]
[331748957,1720750047006,188.83,0.0002525,120]
[331749040,1720750240859,-990.5930191,0.0002,18]
[331749042,1720750240869,-170.28777212,0.00020545,2]
[331749044,1720750240879,-285.0,0.00021095,2]
[331749046,1720750240889,-619.976493,0.00021096,2]
[331749048,1720750240898,-166.818656,0.00021545,2]
[331749050,1720750240910,-166.818656,0.00021769,2]
[331749052,1720750240919,-234.90356209,0.00021883,5]
[331749054,1720750240929,-24900.0,0.00021883,2]
[331749056,1720750240939,-184.80676155,0.00021916,2]
[331749058,1720750240948,-166.666666,0.00021918,2]
[331749060,1720750240959,-166.818656,0.00021994,2]
[331749062,1720750240969,-161.078672,0.00022154,2]
[331749064,1720750240978,-184.80676156,0.00022183,2]
[331749066,1720750240987,-166.818656,0.00022218,2]
[331749068,1720750240997,-880.59014626,0.0002243,2]
[331749070,1720750241006,-166.818656,0.00022443,2]
[331749072,1720750241017,-166.666666,0.0002246,2]
[331749074,1720750241026,-166.818656,0.00022667,2]
[331749076,1720750241035,-166.666666,0.00023003,2]
[331749078,1720750241045,-166.666666,0.00023546,2]
[331749080,1720750241055,-166.666666,0.00024088,2]
[331749082,1720750241065,-151.0,0.00024287,2]
[331749084,1720750241076,-1406.0,0.0002429,2]
[331749086,1720750241085,-166.666666,0.00024631,2]
[331749088,1720750241094,-151.0,0.00024829,2]
[331749090,1720750241104,-1597.87957258,0.0002489,2]
[331749092,1720750241113,-1597.87957255,0.00024893,2]
[331749094,1720750241122,-1597.87957255,0.00024895,2]
[331749096,1720750241132,-1597.87957255,0.00024898,2]
[331749098,1720750241141,-228.29159549,0.00024899,2]
[331749429,1720751045075,160.11432384,0.00018899,2]
[331749430,1720751051708,248.4565504,0.00018899,2]
[331749432,1720751157811,139.55634151,0.00019,10]
[331749497,1720751438861,-308.39119246,0.00020995,2]
[331749498,1720751438870,-92.86253699,0.00021096,2]
[331749499,1720751438882,-533.95744401,0.00021096,2]
[331749500,1720751438892,-166.666666,0.00022977,2]
[331749501,1720751438901,-17318.45952014,0.00023116,2]
[331749571,1720751440926,-7581.54047986,0.00023116,2]
[331749573,1720751440935,-166.666666,0.00023604,2]
[331749575,1720751440946,-166.666666,0.0002423,2]
[331749577,1720751440955,-208.756,0.00024289,2]
[331749579,1720751440964,-1406.0,0.00024289,2]
[331749581,1720751440974,-234.90356208,0.00024769,5]
[331749583,1720751440984,-16187.95942909,0.00024769,2]
[331749921,1720752563904,-187.88893625,0.00020996,2]
[331749922,1720752563937,-285.0,0.00021095,2]
[331749923,1720752563968,-95.86888207,0.00021096,2]
[331750162,1720752638123,-562.52525207,0.00018996,2]
[331750166,1720752638133,-499.61009893,0.00021096,2]
[331750168,1720752638143,-166.666666,0.00022085,2]
[331750170,1720752638156,-119.38863145,0.00022378,2]
[331750173,1720752638168,-10707.47631204,0.00022378,2]
[331750658,1720752643161,-281.37417083,0.00022278,2]
[331750661,1720752643172,-697.68240447,0.00022378,2]
[331753566,1720753497445,154.78224391,0.00016255,2]
[331753576,1720753838380,-574.15125176,0.000189,2]
[331753577,1720753838392,-234.90356208,0.0002083,5]
[331753578,1720753838405,-24900.0,0.00020831,2]
[331753579,1720753838415,-565.705031,0.00021096,2]
[331753580,1720753838425,-1066.1731197,0.00021917,2]
[331753581,1720753838435,-166.666666,0.00021918,2]
[331753582,1720753838444,-319.57591451,0.00022178,2]
[331753583,1720753838454,-771.22,0.0002219,3]
[331753584,1720753838463,-385.61,0.0002219,3]
[331753585,1720753838472,-192.8,0.0002219,3]
[331753586,1720753838481,-641.28573088,0.00022199,2]
[331753587,1720753838491,-500.0,0.00022199,2]
[331753588,1720753838500,-369.29659232,0.00022199,2]
[331753589,1720753838509,-500.0,0.00022199,2]
[331753590,1720753838519,-124.47239743,0.00022199,2]
[331753629,1720753840426,-375.52760257,0.00022199,2]
[331753631,1720753840436,-2395.74517181,0.000222,5]
[331753633,1720753840447,-81438.70600872,0.000222,3]
[331760294,1720754391975,154.67559359,0.00016255,2]
[331760298,1720754496553,1713.80867617,0.00016255,2]
[331760300,1720754585059,892.89432029,0.00016255,2]
[331760302,1720754670052,892.89432029,0.00016255,2]
[331760303,1720754755062,892.89432029,0.00016255,2]
[331760304,1720754801617,892.89432029,0.00016255,2]
[331760306,1720754897809,892.89432029,0.00016255,2]
[331760308,1720754988087,892.89432029,0.00016255,2]
[331760520,1720755038595,-382.76750117,0.000189,2]
[331760522,1720755038605,-892.89432029,0.00019703,2]
[331760525,1720755038615,-282.43077908,0.0002,2]
[331760527,1720755038626,-9051.46484995,0.0002003,2]
[331760529,1720755038638,-3495.27564017,0.0002003,2]
[331760532,1720755038652,-372.78831504,0.0002003,2]
[331760534,1720755038664,-299.12968504,0.0002003,2]
[331760733,1720755040779,-11681.3415098,0.0002003,2]
[331760735,1720755040788,-161.078672,0.00020943,2]
[331760737,1720755040799,-285.0,0.00021095,2]
[331760739,1720755040808,-537.419779,0.00021096,2]
[331760740,1720755040818,-30963.15075967,0.000222,2]
[331760743,1720755040830,-1126.58317035,0.0002264,2]
[331760745,1720755040840,-154.7979742,0.0002274,2]
[331760746,1720755040850,-166.666666,0.00022845,2]
[331760748,1720755040861,-166.666666,0.00023468,2]
[331760750,1720755040871,-5000.0,0.000239,6]
[331760752,1720755040880,-382.76750117,0.000239,2]
[331760754,1720755040889,-208.756,0.00024003,2]
[331760756,1720755040898,-1406.0,0.00024003,2]
[331760758,1720755040908,-166.666666,0.0002409,2]
[331760760,1720755040917,-255.66073164,0.0002439,2]
[331760762,1720755040927,-255.6607316,0.00024402,2]
[331760764,1720755040936,-255.6607316,0.00024414,2]
[331760766,1720755040946,-255.6607316,0.00024426,2]
[331760768,1720755040955,-255.6607316,0.00024438,2]
[331760770,1720755040967,-229.617439,0.00024444,7]
[331760772,1720755040976,-160.563304,0.00024444,2]
[331760774,1720755040989,-301.59,0.0002448,3]
[331760776,1720755040998,-395.48,0.0002448,3]
[331760778,1720755041008,-197.74,0.0002448,3]
[331760780,1720755041017,-593.27,0.0002448,3]
[331760782,1720755041026,-4900.4391319,0.00024486,2]
[331760784,1720755041036,-500.0,0.00024489,2]
[331760786,1720755041045,-448.90001162,0.00024489,2]
[331760788,1720755041055,-421.16589539,0.00024489,2]
[331760790,1720755041064,-500.0,0.00024489,2]
[331760792,1720755041074,-2395.74517181,0.0002449,5]
[331760794,1720755041083,-151.0,0.0002449,7]
[331760796,1720755041093,-151.0,0.0002449,7]
[331760798,1720755041104,-151.0,0.0002449,7]
[331760801,1720755041115,-19027.26880715,0.0002449,3]
[331761142,1720755044302,-553.5789491,0.0002449,3]
[331761379,1720755046596,-461.53549449,0.0002264,2]
[331761381,1720755046606,-1069.60309326,0.0002449,3]
[331761383,1720755046618,-1283.96793707,0.0002449,3]
[331766240,1720756125819,-285.0,0.00021,2]
[331766241,1720756125852,-95.86888207,0.00021096,2]
[331768251,1720757175943,162.046,0.00018,2]
[331768261,1720757401562,-150.0,0.000189,2]
[331768262,1720757401591,-180.00096708,0.0002,2]
[331768263,1720757401619,-179.79985098,0.0002,7]
[331768264,1720757401648,-75.90755131,0.00021095,2]
[331768671,1720757443890,-209.09244869,0.00021095,2]
[331768673,1720757443901,-505.755345,0.00021096,2]
[331768675,1720757443911,-166.666666,0.00021918,2]
[331768677,1720757443920,-2362.74354017,0.000222,2]
[331768686,1720757443996,-1347.92420661,0.000222,2]
[331768689,1720757444015,-1484.98520933,0.000222,2]
[331768985,1720757446942,-500.0,0.000222,2]
[331775563,1720758794050,7695.58741717,0.00016255,2]
[331775572,1720759352863,1603.6328665,0.00016255,2]
[331775583,1720759701121,-150.0,0.000189,2]
[331775584,1720759701151,-154.66746495,0.0002,2]
[331775585,1720759701182,-76.20141712,0.0002,2]
[331775612,1720759838278,-111.68751913,0.0002,2]
[331775614,1720759838288,-154.66746495,0.0002,2]
[331775616,1720759838300,-24900.0,0.00020461,2]
[331775618,1720759838310,-161.078672,0.00020603,2]
[331775620,1720759838321,-985.76027403,0.00020996,2]
[331775622,1720759838332,-285.0,0.00021095,2]
[331775624,1720759838342,-151.0,0.00021095,2]
[331775626,1720759838352,-480.467577,0.00021096,2]
[331775628,1720759838362,-151.0,0.00021096,2]
[331775630,1720759838371,-160.643833,0.00021096,2]
[331775632,1720759838381,-355.692285,0.00021096,2]
[331775634,1720759838390,-355.692285,0.00021096,2]
[331775636,1720759838399,-355.692285,0.00021096,2]
[331775638,1720759838409,-355.692285,0.00021096,2]
[331775640,1720759838418,-355.692285,0.00021096,2]
[331775642,1720759838428,-355.692285,0.00021096,2]
[331775644,1720759838438,-355.692285,0.00021096,2]
[331775647,1720759838451,-355.692285,0.00021096,2]
[331775649,1720759838462,-151.0,0.00021096,2]
[331775651,1720759838472,-151.0,0.00021096,2]
[331775653,1720759838482,-151.0,0.00021096,2]
[331775655,1720759838492,-151.0,0.00021096,2]
[331775657,1720759838504,-167.033981,0.00021096,2]
[331775659,1720759838514,-151.0,0.00021096,2]
[331775661,1720759838524,-151.0,0.00021096,2]
[331775663,1720759838536,-151.0,0.00021096,2]
[331775665,1720759838546,-151.0,0.00021096,2]
[331775667,1720759838556,-151.0,0.00021096,2]
[331775669,1720759838566,-151.0,0.00021096,2]
[331775672,1720759838577,-151.0,0.00021096,2]
[331775674,1720759838588,-151.0,0.00021096,2]
[331775676,1720759838599,-151.0,0.00021096,2]
[331775678,1720759838610,-151.0,0.00021096,2]
[331775680,1720759838623,-151.0,0.00021096,2]
[331775682,1720759838634,-151.0,0.00021096,2]
[331775684,1720759838644,-151.0,0.00021096,2]
[331775686,1720759838654,-151.0,0.00021096,2]
[331775688,1720759838664,-151.0,0.00021096,2]
[331775690,1720759838674,-151.0,0.00021096,2]
[331775692,1720759838683,-151.0,0.00021096,2]
[331775694,1720759838692,-255.211587,0.00021096,2]
[331775696,1720759838703,-227.279661,0.00021096,2]
[331775698,1720759838713,-227.279661,0.00021096,2]
[331775700,1720759838722,-227.279661,0.00021096,2]
[331775702,1720759838732,-227.279661,0.00021096,2]
[331775704,1720759838743,-227.279661,0.00021096,2]
[331775706,1720759838752,-227.279661,0.00021096,2]
[331775708,1720759838761,-227.279661,0.00021096,2]
[331775710,1720759838771,-227.279661,0.00021096,2]
[331775712,1720759838781,-227.279661,0.00021096,2]
[331775714,1720759838792,-227.279661,0.00021096,2]
[331775717,1720759838803,-227.279661,0.00021096,2]
[331775719,1720759838814,-227.279661,0.00021096,2]
[331775721,1720759838824,-227.279661,0.00021096,2]
[331775723,1720759838834,-3.8159377,0.00021096,2]
[331775725,1720759838848,-223.4637233,0.00021096,2]
[331775727,1720759838857,-227.279661,0.00021096,2]
[331775729,1720759838867,-227.279661,0.00021096,2]
[331775731,1720759838876,-227.279661,0.00021096,2]
[331775733,1720759838886,-227.279661,0.00021096,2]
[331775735,1720759838895,-227.279661,0.00021096,2]
[331775737,1720759838904,-227.279666,0.00021096,2]
[331775739,1720759838914,-244.221038,0.00021096,2]
[331775741,1720759838923,-244.221038,0.00021096,2]
[331775743,1720759838933,-244.221038,0.00021096,2]
[331775745,1720759838942,-244.221038,0.00021096,2]
[331775747,1720759838952,-244.221038,0.00021096,2]
[331775749,1720759838963,-244.221038,0.00021096,2]
[331775751,1720759838973,-244.221038,0.00021096,2]
[331775753,1720759838982,-244.221038,0.00021096,2]
[331775755,1720759838991,-244.221038,0.00021096,2]
[331775757,1720759839000,-244.221038,0.00021096,2]
[331775759,1720759839010,-244.221038,0.00021096,2]
[331775761,1720759839020,-244.221038,0.00021096,2]
[331775763,1720759839029,-244.221038,0.00021096,2]
[331775765,1720759839039,-244.221038,0.00021096,2]
[331775767,1720759839048,-244.221038,0.00021096,2]
[331775769,1720759839057,-244.221038,0.00021096,2]
[331775771,1720759839066,-244.221038,0.00021096,2]
[331775773,1720759839076,-244.221038,0.00021096,2]
[331775775,1720759839085,-244.221038,0.00021096,2]
[331775777,1720759839095,-244.221047,0.00021096,2]
[331775779,1720759839105,-355.692285,0.00021818,2]
[331775781,1720759839115,-355.692285,0.00021818,2]
[331775783,1720759839124,-151.0,0.00021918,2]
[331775785,1720759839134,-151.0,0.00021918,2]
[331775787,1720759839143,-151.0,0.00021918,2]
[331775789,1720759839152,-151.0,0.00021918,2]
[331775791,1720759839161,-151.0,0.00021918,2]
[331775793,1720759839170,-151.0,0.00021918,2]
[331775795,1720759839181,-151.0,0.00021918,2]
[331775797,1720759839190,-151.0,0.00021918,2]
[331775799,1720759839200,-151.0,0.00021918,2]
[331775801,1720759839209,-151.0,0.00021918,2]
[331775803,1720759839219,-151.0,0.00021918,2]
[331775805,1720759839228,-151.0,0.00021918,2]
[331775807,1720759839237,-151.0,0.00021918,2]
[331775809,1720759839247,-151.0,0.00021918,2]
[331775811,1720759839256,-151.0,0.00021918,2]
[331775812,1720759839266,-151.0,0.00021918,2]
[331775814,1720759839275,-260.863233,0.00021918,2]
[331775816,1720759839284,-322.985827,0.00021918,2]
[331775818,1720759839294,-322.985827,0.00021918,2]
[331775820,1720759839302,-322.985827,0.00021918,2]
[331775822,1720759839311,-322.985827,0.00021918,2]
[331775824,1720759839320,-322.985827,0.00021918,2]
[331775826,1720759839330,-322.985827,0.00021918,2]
[331775828,1720759839339,-322.985827,0.00021918,2]
[331775830,1720759839348,-322.985827,0.00021918,2]
[331775832,1720759839357,-322.985827,0.00021918,2]
[331775834,1720759839366,-322.985827,0.00021918,2]
[331775836,1720759839377,-322.985827,0.00021918,2]
[331775838,1720759839387,-322.985827,0.00021918,2]
[331775840,1720759839397,-322.985827,0.00021918,2]
[331775843,1720759839408,-322.985827,0.00021918,2]
[331775845,1720759839417,-322.985827,0.00021918,2]
[331775846,1720759839427,-322.985827,0.00021918,2]
[331775849,1720759839437,-322.985827,0.00021918,2]
[331775851,1720759839449,-322.985827,0.00021918,2]
[331775853,1720759839459,-322.985827,0.00021918,2]
[331775855,1720759839468,-322.985831,0.00021918,2]
[331775857,1720759839477,-166.666666,0.00021918,2]
[331775859,1720759839487,-355.692285,0.00021918,7]
[331775861,1720759839497,-355.692285,0.00021918,7]
[331775863,1720759839506,-355.692285,0.00021918,7]
[331775865,1720759839516,-355.692285,0.00021918,7]
[331775867,1720759839526,-355.692285,0.00021918,7]
[331775869,1720759839535,-355.692285,0.00021918,7]
[331775871,1720759839544,-355.692285,0.00021918,7]
[331775873,1720759839553,-355.692285,0.00021918,7]
[331775875,1720759839562,-355.692285,0.00021918,7]
[331775877,1720759839572,-355.692289,0.00021918,7]
[331775879,1720759839581,-281.37417083,0.0002217,2]
[331775881,1720759839591,-38909.82326809,0.00022189,2]
[331775883,1720759839600,-894.81,0.00022189,3]
[331775885,1720759839610,-298.27,0.0002219,3]
[331775887,1720759839620,-500.0,0.00022199,2]
[331775889,1720759839634,-314.23000813,0.00022199,2]
[331775891,1720759839643,-644.81612677,0.00022199,2]
[331775893,1720759839652,-2395.74517181,0.000222,5]
[331775895,1720759839663,-168618.30032287,0.000222,3]
[331776243,1720759843203,-435.68161503,0.000222,3]
[331782594,1720761317089,931.5397213,0.00016255,2]
[331782599,1720761504693,1782.46950965,0.00016255,2]
[331782603,1720761593739,2645.0,0.0002525,120]
[331782605,1720761670473,598.24214223,0.00016255,2]
[331782609,1720761761800,2670.02522048,0.00016043,2]
[331782610,1720761762496,366.6405652,0.00016007,2]
[331782614,1720761891916,2670.02522049,0.00016537,2]
[331782617,1720762105591,492.6391522,0.00016255,2]
[331782696,1720762175422,-257.56218712,0.00018798,2]
[331782697,1720762175456,-2.37503449,0.0002,2]
[331783383,1720762243732,-152.27699844,0.0002,2]
[331783385,1720762243742,-1426.69661808,0.00020819,2]
[331783676,1720762246740,-1745.97566925,0.00020819,2]
[331783678,1720762246754,-14284.51093172,0.00020819,2]
[331785315,1720762655756,-161.078672,0.00020627,2]
[331785316,1720762674523,-24900.0,0.00020871,2]
[331785317,1720762674554,-285.0,0.00021095,2]
[331785340,1720763120287,-154.65203293,0.0002,2]
[331785341,1720763120314,-514.100111,0.00021096,2]
[331785342,1720763120337,-24231.24785607,0.00021115,2]
[331785347,1720763375578,-154.65203293,0.00021095,2]
[331788194,1720763659162,475.85674852,0.00016255,2]
[331788196,1720763680032,155.13558848,0.00016255,2]
[331788197,1720763701875,-300.0,0.00018899,2]
[331788198,1720763702760,-478.99673248,0.00018899,2]
[331788199,1720763704900,-300.0,0.00020807,2]
[331788200,1720763706726,-4231.25396705,0.00018899,2]
[331788201,1720763773395,-300.0,0.00020807,2]
[331788202,1720763773420,-300.0,0.00020807,2]
[331788203,1720763773445,-24300.0,0.00020808,2]
[331788204,1720763898015,-319.53653133,0.00019165,2]
[331788206,1720763921732,-491.52773917,0.00019165,2]
[331788208,1720764188661,-494.71552905,0.00019165,2]
[331788298,1720764638449,-154.65203293,0.0002,2]
[331788300,1720764638459,-161.078672,0.00020408,2]
[331788302,1720764638469,-300.0,0.00020975,2]
[331788304,1720764638478,-300.0,0.00020975,2]
[331788306,1720764638489,-24900.0,0.00020976,2]
[331788308,1720764638502,-130.34796707,0.00021095,2]
[331788310,1720764638515,-488.395105,0.00021096,2]
[331788312,1720764638528,-166.666666,0.00021918,2]
[331788315,1720764638540,-300.0,0.00021979,2]
[331788317,1720764638552,-917.9067202,0.0002199,2]
[331788319,1720764638562,-1000.0,0.00022,3]
[331788321,1720764638574,-509.46832859,0.00022,2]
[331788323,1720764638587,-1000.0,0.00022089,10]
[331788325,1720764638598,-1000.0,0.00022089,10]
[331788328,1720764638610,-464.29869828,0.00022089,2]
[331788330,1720764638622,-923.07098898,0.0002209,2]
[331788332,1720764638635,-2000.0,0.0002209,2]
[331788334,1720764638647,-88888.0,0.0002209,3]
[331788337,1720764638658,-172.0,0.000221,4]
[331788339,1720764638671,-153.0,0.000221,2]
[331788341,1720764638683,-711.35,0.0002218,3]
[331788343,1720764638695,-711.33,0.0002218,3]
[331788346,1720764638707,-252.15311988,0.00022188,10]
[331788348,1720764638719,-500.0,0.00022189,2]
[331788350,1720764638730,-451.37128874,0.00022189,2]
[331788352,1720764638741,-219.96100569,0.00022189,2]
[331788355,1720764638753,-1197.87258591,0.0002219,5]
[331788357,1720764638765,-395668.314262,0.0002219,3]
[331788359,1720764638778,-151.0,0.0002219,7]
[331788361,1720764638789,-56215.8929279,0.000222,3]
[331788490,1720764640231,-1833.50367553,0.000222,3]
[331788493,1720764640247,-1205.51120499,0.000222,3]
[331788857,1720764646361,-5784.00582292,0.000222,3]
[331789890,1720764719426,-166.666666,0.00021918,2]
[331789891,1720764719450,-10388.834545,0.00022084,2]
[331789892,1720764920169,1272.26,0.000225,30]
[331789893,1720764924514,46206.34329031,0.00016254,2]
[331789894,1720764924537,9736.1703816,0.00016254,2]
[331789966,1720765833317,-226.71434397,0.0002,2]
[331789968,1720765833327,-285.0,0.00021095,2]
[331789970,1720765833337,-255.13936034,0.00021096,2]
[331790045,1720765838325,-208.83598866,0.00021096,2]
[331790047,1720765838336,-166.666666,0.00021918,2]
[331790049,1720765838347,-24376.4123812,0.0002208,2]
[331790052,1720765838358,-306.0,0.000227,2]
[331790054,1720765838368,-1406.0,0.00022925,2]
[331790056,1720765838378,-500.0,0.00023,2]
[331790057,1720765838387,-893.43310826,0.00023,7]
[331790059,1720765838397,-166.666666,0.00023369,2]
[331790062,1720765838407,-157.924508,0.00023486,2]
[331790064,1720765838417,-218.691704,0.00023486,2]
[331790066,1720765838428,-189.643927,0.00023486,2]
[331790068,1720765838437,-803.16838021,0.000239,2]
[331790070,1720765838447,-1158.67116965,0.00024,2]
[331790072,1720765838457,-1360.91734329,0.00024,2]
[331790074,1720765838466,-500.0,0.00024,2]
[331790077,1720765838475,-300.0,0.00024146,2]
[331790081,1720765838489,-1016.62316935,0.00024266,2]
[331790084,1720765838499,-19238.69915344,0.0002427,2]
[331790087,1720765838511,-957.45571264,0.00024355,2]
[331790090,1720765838521,-948.22094155,0.00024399,2]
[331790092,1720765838531,-59781.96918073,0.0002449,3]
[331790304,1720765840518,-0.11985585,0.0002449,3]
[331802908,1720766248140,163.11,0.000183,2]
[331802916,1720766541766,285.0,0.000252,120]
[331802925,1720766966512,-23601.83455001,0.00038391,30]
[331802926,1720766966540,-1999.999999,0.00038391,120]
[331802927,1720766966566,-1326.32406369,0.00038391,120]
[331802928,1720766966591,-6224.60077408,0.00038391,7]
[331802929,1720766966739,-340274.69095033,0.00038391,7]
[331802930,1720766966765,-85713.90124726,0.00038391,7]
[331802931,1720766966790,-150.0,0.00038391,7]
[331802932,1720766966814,-150.0,0.00038391,7]
[331802933,1720766966843,-2923.59336485,0.00038391,7]
[331802934,1720766966869,-7781.79889045,0.00038391,7]
[331802935,1720766966894,-152.55,0.00038391,7]
[331802936,1720766966918,-649.0,0.00038391,30]
[331802937,1720766966943,-721.71904541,0.00038391,30]
[331802938,1720766966970,-1134.83899779,0.00038391,120]
[331802939,1720766966995,-228.0202585,0.00038391,120]
[331802946,1720766998794,-5614.0,0.00021,2]
[331802947,1720766998820,-285.0,0.00021095,2]
[331802948,1720766998847,-440.776581,0.00021096,2]
[331802949,1720766998872,-161.078672,0.00022466,2]
[331802950,1720766998898,-166.666666,0.00022733,2]
[331802951,1720766998923,-1406.0,0.00022846,2]
[331802952,1720766998949,-208.756,0.00022846,2]
[331802953,1720766998974,-155.17833411,0.000231,2]
[331802954,1720766999000,-1000.0,0.00024,24]
[331802955,1720766999027,-274.43001276,0.0002439,3]
[331802956,1720766999052,-843.59522896,0.00024399,2]
[331802957,1720766999076,-486.12101065,0.00024449,2]
[331802958,1720766999103,-248.01,0.0002448,3]
[331802959,1720766999130,-744.05,0.0002448,3]
[331802960,1720766999156,-109116.917922,0.0002449,3]
[331802961,1720766999182,-1482.44400312,0.00024499,2]
[331802962,1720766999206,-83627.24261657,0.000245,2]
[331802963,1720766999231,-1000.0,0.000245,5]
[331802964,1720766999256,-152.774875,0.000245,7]
[331802965,1720766999281,-151.0,0.000245,7]
[331802966,1720766999305,-151.0,0.000245,7]
[331802967,1720766999330,-278.350146,0.000245,7]
[331802968,1720766999356,-154.305594,0.000245,7]
[331802969,1720766999380,-152.110826,0.000245,7]
[331802970,1720766999405,-151.0,0.000245,7]
[331802971,1720766999430,-239.551692,0.000245,7]
[331802972,1720766999455,-151.0,0.000245,7]
[331802973,1720766999479,-284.922456,0.000245,7]
[331802974,1720766999504,-284.922456,0.000245,7]
[331802975,1720766999528,-151.0,0.00024748,2]
[331802976,1720766999553,-1014.23748484,0.000249,2]
[331802977,1720766999578,-229.27397426,0.00025,2]
[331802978,1720766999603,-260.51865148,0.00025,2]
[331802979,1720766999628,-3318.01082722,0.00025,2]
[331802980,1720766999652,-500.0,0.00025,2]
[331802981,1720766999677,-1000.0,0.00025,25]
[331802982,1720766999702,-151.0,0.00025,7]
[331802983,1720766999727,-151.0,0.00025,7]
[331802984,1720766999753,-171.879584,0.00025,7]
[331802985,1720766999777,-153.866782,0.00025,7]
[331802986,1720766999802,-284.922456,0.00025,7]